[Event "Elegant 1st Division League 2024"]
[Site "Dhaka"]
[Date "2024.07.11"]
[Round "1.8"]
[White "Noshin, Anjum"]
[Black "Bhuiyan, Golam Mostafa"]
[Result "1/2-1/2"]
[Annotator "NA RC"]
[ECO "B90"]
[WhiteElo "2056"]
[BlackElo "2078"]
[PlyCount "133"]
[EventDate "2024.07.10"]
[EventType "team-tourn"]
[EventCountry "BAN"]
[SourceTitle "playchess.com"]
[Source "ChessBase"]
[SourceQuality "1"]
[TimeControl "5400+30"]

1. e4 {[%emt 0:00:04]} c5 {[%emt 0:00:01]} 2. Nf3 {[%emt 0:00:18]} d6 {[%emt 0:00:02]} 3. d4 {[%emt 0:00:08]} cxd4 {[%emt 0:00:04]} 4. Nxd4 {[%emt 0:00:07]} Nf6 {[%emt 0:00:10]} 5. Nc3 {[%emt 0:00:24]} a6 {[%emt 0:00:17]} 6. f3 {[%emt 0:00:29]} b5 {[%emt 0:01:22] B90: Sicilian Najdorf: Unusual White 6th moves, 6 Be3 Ng4 and 6 Be3 e5.} 7. a4 {[%emt 0:04:50]} b4 {[%emt 0:02:45]} 8. Na2 {[%emt 0:06:05]} e5 {[%emt 0:00:25]} 9. Nb3 {[%emt 0:02:38]} Nc6 {[%emt 0:00:25]} 10. Bc4 {[%emt 0:04:19]} Be6 {[%emt 0:00:30]} 11. Bd5 {[%emt 0:13:27]} Qc7 {[%emt 0:04:40]} 12. Bg5 {[%emt 0:14:16]} a5 {[%emt 0:01:54]} 13. c3 {[%emt 0:09:39]} Be7 $2 {[%emt 0:01:44]} (13... Bxd5 $15 {stays ahead.} 14. exd5 Ne7) 14. Bxf6 {[%emt 0:07:49]} Bxf6 {[%emt 0:02:43]} 15. cxb4 {[%emt 0:00:20]} Rc8 {[%emt 0:08:34]} 16. Rc1 {[%emt 0:05:30]} Qb6 {[%emt 0:00:25]} 17. Bxe6 {[%emt 0:10:07]} fxe6 {[%emt 0:00:45]} 18. Nxa5 {[%emt 0:01:05]} O-O {[%emt 0:04:56]} 19. Nc4 {[%emt 0:06:32]} Qa7 {[%emt 0:03:33]} 20. b5 {[%emt 0:09:13]} Bh4+ {[%emt 0:10:49]} (20... Nd4 $15 {keeps the upper hand.} 21. b6 (21. Nxd6 $2 {loses.} Nxf3+ 22. Ke2 Bg5 $19) 21... Qb8) 21. g3 {[%emt 0:01:10]} Nd4 {[%emt 0:00:05]} 22. b6 {[%emt 0:01:26]} (22. gxh4 Nxf3+ 23. Ke2 $19 Nd4+ 24. Ke1 Qf7 $19) 22... Qa8 {[%emt 0:06:58]} 23. O-O {[%emt 0:01:07]} (23. gxh4 $2 {too greedy.} Nxf3+ $19) (23. Nxd6 $2 Rxc1 (23... Nxf3+ $2 24. Kf1 $19) 24. Nxc1 Be7 $19 (24... Nxf3+ $2 25. Kf1 $19) (24... Qa5+ 25. Kf2 $11)) 23... Be7 {[%emt 0:06:54]} 24. Rc3 {[%emt 0:00:44]} Qb8 {[%emt 0:04:48]} 25. a5 {[%emt 0:00:34]} d5 {[%emt 0:00:01]} 26. exd5 {[%emt 0:00:14]} exd5 {[%emt 0:00:02]} 27. Ne3 $18 {[%emt 0:00:45]} Rcd8 {[%emt 0:04:11]} 28. Kg2 {[%emt 0:00:32]} Qa8 {[%emt 0:01:12]} 29. Rc7 {[%emt 0:00:25]} Qxa5 {[%emt 0:01:39]} 30. Rxe7 {[%emt 0:00:28]} Qxa2 {[%emt 0:00:03]} 31. Rxe5 {[%emt 0:00:39]} Qxb2+ {[%emt 0:02:14]} 32. Rf2 {[%emt 0:00:04]} Qxb6 {[%emt 0:00:09]} 33. Nxd5 {[%emt 0:00:21]} Qa7 {[%emt 0:03:52]} 34. Ne7+ {[%emt 0:01:02]} Kh8 {[%emt 0:00:01]} 35. Rd2 {[%emt 0:00:33]} Rd6 {[%emt 0:04:53]} 36. Re4 {[%emt 0:00:33]} Rfd8 {[%emt 0:01:54]} 37. Nc6 {[%emt 0:00:26]} Rxc6 {[%emt 0:00:47]} 38. Rexd4 {[%emt 0:00:35]} Rf8 {[%emt 0:01:34]} 39. Rd8 {[%emt 0:00:18]} Rcf6 {[%emt 0:00:14]} 40. Rxf8+ {[%emt 0:00:33]} Rxf8 {[%emt 0:00:01]} 41. Rd8 {[%emt 0:00:35]} Qa2+ {[%emt 0:00:59]} 42. Kh3 {[%emt 0:00:14]} Qe6+ {[%emt 0:00:03]} 43. g4 {[%emt 0:00:26]} Qf6 {[%emt 0:02:04]} 44. Rxf8+ {[%emt 0:00:37]} Qxf8 {[%emt 0:00:01]} 45. Qd5 {[%emt 0:00:30]} h6 {[%emt 0:00:20]} 46. Kg3 {[%emt 0:00:30]} Qe8 {[%emt 0:00:16]} 47. Qe4 {[%emt 0:00:46]} Qb8+ {[%emt 0:01:15]} 48. Qf4 {[%emt 0:00:28]} Qa7 {[%emt 0:00:12]} 49. Qf8+ {[%emt 0:00:26]} Kh7 {[%emt 0:00:00]} 50. Qf5+ {[%emt 0:00:31]} Kh8 {[%emt 0:00:03]} 51. Kh3 {[%emt 0:00:29]} Qe7 {[%emt 0:01:56]} 52. f4 {[%emt 0:00:29]} Qe3+ {[%emt 0:00:02]} 53. Kh4 {[%emt 0:00:23]} Qf2+ {[%emt 0:06:49]} 54. Kh3 {[%emt 0:00:36]} Qf3+ {[%emt 0:00:31]} 55. Kh4 {[%emt 0:00:06]} Qf2+ {[%emt 0:00:14]} 56. Kh5 {[%emt 0:00:19]} Qxh2+ {[%emt 0:00:01]} 57. Kg6 {[%emt 0:00:06]} Qa2 {[%emt 0:00:23]} 58. Qf8+ {[%emt 0:01:26]} Qg8 {[%emt 0:00:04]} 59. Qxg8+ {[%emt 0:00:30]} Kxg8 {[%emt 0:00:01]} 60. f5 {[%emt 0:00:36]} Kf8 {[%emt 0:00:19]} 61. f6 {[%emt 0:00:27]} gxf6 {[%emt 0:00:01]} 62. Kxf6 {[%emt 0:00:23]} h5 {[%emt 0:00:22]} 63. gxh5 {[%emt 0:00:08]} Kg8 {[%emt 0:00:02]} 64. Kg6 {[%emt 0:00:07]} Kh8 {[%emt 0:00:09]} 65. h6 {[%emt 0:00:09]} Kg8 {[%emt 0:00:01]} 66. h7+ {[%emt 0:00:05]} Kh8 {[%emt 0:00:07]} 67. Kh6 {[%emt 0:00:04]} 1/2-1/2

[Event "Elegant 1st Division League 2024"]
[Site "Dhaka"]
[Date "2024.07.11"]
[Round "1.9"]
[White "Vrashank Chouhan"]
[Black "Choudhury, Zahid"]
[Result "1-0"]
[Annotator "RC"]
[ECO "D02"]
[WhiteElo "2209"]
[BlackElo "1838"]
[PlyCount "80"]
[EventDate "2024.07.10"]
[EventType "team-tourn"]
[EventCountry "BAN"]
[SourceTitle "playchess.com"]
[Source "ChessBase"]
[SourceQuality "1"]
[TimeControl "5400+30"]

1. d4 {[%emt 0:00:03]} d5 {[%emt 0:05:17]} 2. Bf4 {[%emt 0:00:10]} e6 {[%emt 0:00:12]} 3. e3 {[%emt 0:00:08]} Nf6 {[%emt 0:00:11]} 4. Nf3 {[%emt 0:00:07]} Be7 {[%emt 0:00:17]} 5. Nbd2 {[%emt 0:00:23]} c5 {[%emt 0:00:37]} 6. c3 {[%emt 0:00:09]} Nc6 {[%emt 0:00:24]} 7. Ne5 {[%emt 0:02:10]} Bd7 {[%emt 0:03:02]} 8. Bd3 {[%emt 0:01:02]} Rc8 {[%emt 0:02:15]} 9. h4 {[%emt 0:00:58]} cxd4 {[%emt 0:02:10]} 10. exd4 {[%emt 0:00:17]} Qb6 {[%emt 0:04:52]} 11. Rb1 {[%emt 0:00:47]} Na5 {[%emt 0:13:13]} 12. Qe2 {[%emt 0:03:22]} h6 {[%emt 0:10:45]} 13. h5 {[%emt 0:03:26]} Nc6 {[%emt 0:06:46]} 14. Ndf3 {[%emt 0:04:21]} Qa5 {[%emt 0:06:48]} 15. a3 {[%emt 0:02:59]} Qb6 {[%emt 0:04:16]} 16. Nxc6 {[%emt 0:08:21]} Bxc6 {[%emt 0:08:34]} 17. Ne5 {[%emt 0:00:07]} Ba4 {[%emt 0:02:24]} 18. O-O {[%emt 0:03:38]} a6 {[%emt 0:01:23]} 19. b3 {[%emt 0:07:38]} Bd7 {[%emt 0:02:33]} 20. Bd2 {[%emt 1:00:24]} O-O {[%emt 0:05:08]} 21. a4 {[%emt 0:00:00]} Bc6 {[%emt 0:02:12]} 22. Rfe1 {[%emt 0:00:00]} Qc7 {[%emt 0:04:11]} 23. Bc2 {[%emt 0:00:00]} Bd6 {[%emt 0:01:00]} 24. Qd3 {[%emt 0:00:00]} Rfe8 {[%emt 0:01:47]} 25. f3 {[%emt 0:00:00]} Kf8 {[%emt 0:02:02]} 26. g4 {[%emt 0:00:00]} Nd7 {[%emt 0:03:59]} 27. f4 {[%emt 0:00:00]} Nf6 {[%emt 0:00:51]} 28. Nxc6 {[%emt 0:00:00]} Qxc6 {[%emt 0:00:32]} 29. Qf3 {[%emt 0:00:00]} Bb4 {[%emt 0:02:43]} 30. Re3 {[%emt 0:00:00]} Bd6 {[%emt 0:02:03]} 31. g5 {[%emt 0:00:00]} Ng8 {[%emt 0:01:03]} 32. Bh7 {[%emt 0:00:00]} Ne7 {[%emt 0:01:03]} 33. gxh6 {[%emt 0:00:00]} gxh6 {[%emt 0:00:02]} 34. f5 {[%emt 0:00:00]} Kg7 {[%emt 0:01:40]} 35. fxe6 {[%emt 0:00:00]} Kxh7 {[%emt 0:00:49]} 36. Qxf7+ {[%emt 0:00:00]} Kh8 {[%emt 0:00:32]} 37. Qf6+ {[%emt 0:00:55]} Kh7 {[%emt 0:00:07]} 38. Rf3 {[%emt 0:00:41]} Ng8 {[%emt 0:00:27]} 39. Qg6+ {[%emt 0:00:09]} Kh8 {[%emt 0:00:10]} 40. Rf7 {[%emt 0:00:17]} Nf6 {[%emt 0:01:01]} 1-0

[Event "Elegant 1st Division League 2024"]
[Site "Dhaka"]
[Date "2024.07.11"]
[Round "1.10"]
[White "Mirza Arifur, Rahman"]
[Black "Tutul, Dhar"]
[Result "1-0"]
[Annotator "RC"]
[ECO "D02"]
[WhiteElo "1823"]
[BlackElo "2008"]
[PlyCount "67"]
[EventDate "2024.07.10"]
[EventType "team-tourn"]
[EventCountry "BAN"]
[SourceTitle "playchess.com"]
[Source "ChessBase"]
[SourceQuality "1"]
[TimeControl "5400+30"]

1. d4 {[%emt 0:00:24]} Nf6 {[%emt 1:31:00]} 2. Nf3 {[%emt 0:00:23]} d5 {[%emt 0:00:00]} 3. Bf4 {[%emt 0:02:25]} e6 {[%emt 0:00:00]} 4. e3 {[%emt 0:00:11]} Bd6 {[%emt 0:01:30]} 5. Bg3 O-O {[%emt 0:00:00]} 6. Bd3 {[%emt 0:00:27]} c5 {[%emt 0:00:00]} 7. c3 {[%emt 0:00:12]} Nc6 {[%emt 0:00:00]} 8. Nbd2 {[%emt 0:00:08]} b6 {[%emt 0:00:00]} 9. Ne5 {[%emt 0:02:26]} Bb7 {[%emt 0:00:00]} 10. O-O {[%emt 0:00:17]} Rc8 {[%emt 0:00:00]} 11. f4 {[%emt 0:04:22]} Ne7 {[%emt 0:03:30]} 12. Bh4 {[%emt 0:06:42]} Nf5 {[%emt 0:00:00]} 13. Qe1 {[%emt 0:00:52]} Be7 {[%emt 0:00:00]} 14. Bxf6 {[%emt 0:02:00]} Bxf6 {[%emt 0:00:00]} 15. Ndf3 {[%emt 0:00:37]} g6 {[%emt 0:00:00]} 16. g4 {[%emt 1:17:04]} Nd6 17. Qg3 Bg7 18. g5 {[%emt 0:00:00]} Ne4 {[%emt 0:00:00]} 19. Qg4 {[%emt 0:00:00]} Qe7 {[%emt 0:00:00]} 20. Kg2 {[%emt 0:00:00]} cxd4 {[%emt 0:00:00]} 21. exd4 {[%emt 0:02:30]} Rce8 22. Bb5 Rd8 23. h4 f6 24. gxf6 {[%emt 0:00:00]} Nxf6 {[%emt 0:00:00]} 25. Qg5 {[%emt 0:02:00]} Qc7 26. Bd3 Nh5 27. Nh2 Bf6 28. Qg4 {[%emt 0:00:00]} Qe7 {[%emt 0:00:00]} 29. Qg5 {[%emt 0:00:00]} Qc7 {[%emt 0:00:00]} 30. Qg4 {[%emt 0:00:00]} Qe7 {[%emt 0:00:00]} 31. Kh3 {[%emt 0:00:00]} Bxe5 {[%emt 0:00:00]} 32. fxe5 {[%emt 0:00:00]} Rxf1 {[%emt 0:00:00]} 33. Rxf1 {[%emt 0:00:00]} Rf8 {[%emt 0:00:00]} 34. Rxf8+ {[%emt 0:00:00]} 1-0

[Event "Elegant 1st Division League 2024"]
[Site "Dhaka"]
[Date "2024.07.11"]
[Round "1.11"]
[White "Dakshita Kumawat"]
[Black "Salim Mohammed, Salim Al Amri"]
[Result "1/2-1/2"]
[Annotator "NA RC"]
[ECO "D36"]
[WhiteElo "1928"]
[BlackElo "1928"]
[PlyCount "85"]
[EventDate "2024.07.10"]
[EventType "team-tourn"]
[EventCountry "BAN"]
[SourceTitle "playchess.com"]
[Source "ChessBase"]
[SourceQuality "1"]
[TimeControl "5400+30"]

1. d4 {[%emt 0:00:08]} Nf6 {[%emt 0:00:12]} 2. c4 {[%emt 0:00:05]} e6 {[%emt 0:01:02]} 3. Nc3 {[%emt 0:00:05]} d5 {[%emt 0:00:05]} 4. cxd5 {[%emt 0:00:04]} exd5 {[%emt 0:00:25]} 5. Bg5 {[%emt 0:00:03]} c6 {[%emt 0:00:54]} 6. e3 {[%emt 0:00:15]} Nbd7 {[%emt 0:01:48]} 7. Bd3 {[%emt 0:00:04]} h6 {[%emt 0:03:02]} 8. Bh4 {[%emt 0:00:36]} Be7 {[%emt 0:01:03]} 9. Qc2 {[%emt 0:00:40]} O-O {[%emt 0:00:18]} 10. Nge2 {[%emt 0:00:02]} Re8 {[%emt 0:01:01]} 11. O-O {[%emt 0:00:07]} Nf8 {[%emt 0:00:32] 11...Nh5 is de moderne voortzetting.} 12. f3 {[%emt 0:06:19]} N6h7 {[%emt 0:06:46] D36: Damegambiet Geweigerd: Ruilvariant: Hoofdvariant (5 Lg5 c6 6 Dc2).} 13. Bxe7 {[%emt 0:07:13]} Qxe7 {[%emt 0:02:12]} 14. e4 {[%emt 0:00:10]} Be6 {[%emt 0:02:31]} 15. e5 {[%emt 0:07:33]} Rac8 $146 {[%emt 0:20:01]} ({Predecessor:} 15... c5 16. f4 cxd4 17. Nxd4 Qc5 18. Qf2 Bd7 19. Rac1 Rac8 20. Rc2 Ne6 21. Nf5 Qxf2+ 22. Rcxf2 {½-½ De Paula,L (1704)-De Rossi,P (2087) Barrinha Merli Memorial op 2010 (3)}) 16. f4 {[%emt 0:03:09]} g6 {[%emt 0:01:35]} 17. Rf3 {[%emt 0:10:37]} f5 {[%emt 0:07:08]} 18. Qd2 {[%emt 0:17:06]} a6 {[%emt 0:05:02]} 19. Na4 {[%emt 0:03:12]} Nd7 {[%emt 0:00:21]} 20. b4 {[%emt 0:01:52]} Kh8 {[%emt 0:03:13]} 21. h4 {[%emt 0:03:17]} Rg8 {[%emt 0:03:13]} 22. Rh3 {[%emt 0:01:14]} h5 {[%emt 0:01:02]} 23. Kh2 {[%emt 0:08:36]} Nhf8 {[%emt 0:00:47]} 24. Nc1 {[%emt 0:03:56]} b5 {[%emt 0:00:35]} 25. Nc5 {[%emt 0:01:36]} Nxc5 {[%emt 0:00:07]} 26. bxc5 {[%emt 0:00:21]} Bf7 {[%emt 0:03:22]} 27. Nb3 {[%emt 0:01:12]} Ne6 {[%emt 0:00:17]} 28. Be2 {[%emt 0:01:30]} Qd8 {[%emt 0:02:41]} 29. Na5 {[%emt 0:02:43]} Qc7 {[%emt 0:00:55]} 30. Rd3 {[%emt 0:03:23]} Kh7 {[%emt 0:00:26]} 31. g3 $16 {[%emt 0:00:08]} Rb8 {[%emt 0:04:08]} 32. Qb4 {[%emt 0:00:03]} Ra8 {[%emt 0:00:56]} 33. Bf3 {[%emt 0:03:01]} Nd8 {[%emt 0:02:44]} 34. Re1 {[%emt 0:00:18]} Be6 {[%emt 0:00:19]} 35. Ra3 {[%emt 0:03:45]} Re8 {[%emt 0:00:41]} 36. Kg2 {[%emt 0:00:59]} Bf7 {[%emt 0:05:45]} 37. Kf2 {[%emt 0:00:24]} Be6 {[%emt 0:01:19]} 38. Ke3 {[%emt 0:00:05]} Nf7 {[%emt 0:00:39]} 39. Nb3 {[%emt 0:01:48]} Ra7 {[%emt 0:04:41]} 40. Ra5 {[%emt 0:00:12]} Rea8 {[%emt 0:01:10]} 41. Ra1 {[%emt 0:03:47]} Nd8 {[%emt 0:04:14]} 42. Rh1 {[%emt 0:04:39]} Nb7 {[%emt 0:00:50]} 43. a3 {[%emt 0:00:13]} 1/2-1/2

[Event "Elegant 1st Division League 2024"]
[Site "Dhaka"]
[Date "2024.07.11"]
[Round "1.12"]
[White "Islam, Obaidul Shahin"]
[Black "Jamal Uddin"]
[Result "0-1"]
[Annotator "RC"]
[ECO "B49"]
[WhiteElo "1976"]
[BlackElo "1963"]
[PlyCount "62"]
[EventDate "2024.07.10"]
[EventType "team-tourn"]
[EventCountry "BAN"]
[SourceTitle "playchess.com"]
[Source "ChessBase"]
[SourceQuality "1"]
[TimeControl "5400+30"]

1. e4 {[%emt 0:00:19]} c5 {[%emt 0:00:18]} 2. Nf3 {[%emt 0:00:04]} Nc6 {[%emt 0:01:07]} 3. Nc3 {[%emt 0:00:30]} a6 {[%emt 0:01:07]} 4. d4 {[%emt 0:01:09]} cxd4 {[%emt 0:00:12]} 5. Nxd4 {[%emt 0:00:12]} e6 {[%emt 0:01:21]} 6. Be2 {[%emt 0:01:21]} Qc7 {[%emt 0:00:35]} 7. Be3 {[%emt 0:01:08]} Nf6 {[%emt 0:00:25]} 8. O-O {[%emt 0:02:22]} Bb4 {[%emt 0:01:16]} 9. f3 {[%emt 0:00:23]} h5 {[%emt 0:00:36]} 10. Na4 {[%emt 0:03:04]} b5 {[%emt 0:04:17]} 11. a3 {[%emt 0:05:15]} Bd6 {[%emt 0:01:14]} 12. Nc3 {[%emt 0:07:07]} Bxh2+ {[%emt 0:00:21]} 13. Kh1 {[%emt 0:00:11]} Bg3 {[%emt 0:01:33]} 14. Qd2 {[%emt 0:07:48]} Nxd4 {[%emt 0:04:26]} 15. Qxd4 {[%emt 0:01:25]} Be5 {[%emt 0:01:08]} 16. Qd2 {[%emt 0:00:10]} Bb7 {[%emt 0:00:13]} 17. Bd3 {[%emt 0:01:24]} h4 {[%emt 0:00:27]} 18. Rab1 {[%emt 0:02:27]} Rc8 {[%emt 0:00:45]} 19. Ne2 {[%emt 0:00:31]} h3 {[%emt 0:01:37]} 20. Bf4 {[%emt 0:03:42]} d5 {[%emt 0:05:04]} 21. exd5 {[%emt 0:02:31]} Nxd5 {[%emt 0:00:36]} 22. g3 {[%emt 0:03:45]} Rd8 {[%emt 0:08:07]} 23. Kh2 {[%emt 0:03:10]} Nxf4 {[%emt 0:09:06]} 24. Nxf4 {[%emt 0:01:02]} g5 {[%emt 0:04:49]} 25. Ne2 {[%emt 0:01:03]} Bf6 {[%emt 0:00:19]} 26. Qe3 {[%emt 0:00:43]} Ke7 {[%emt 0:05:00]} 27. Rfd1 {[%emt 0:11:06]} Rd7 {[%emt 0:04:19]} 28. c3 {[%emt 0:02:09]} Rhd8 {[%emt 0:01:14]} 29. Bc2 {[%emt 0:02:12]} Qe5 {[%emt 0:01:02]} 30. Qxe5 {[%emt 0:01:31]} Bxe5 {[%emt 0:00:03]} 31. Ng1 {[%emt 0:02:02]} Rd2+ {[%emt 0:00:10]} 0-1

[Event "Elegant 1st Division League 2024"]
[Site "Dhaka"]
[Date "2024.07.11"]
[Round "1.13"]
[White "Sajib, Das"]
[Black "Hossain, Monir"]
[Result "1/2-1/2"]
[Annotator "NA RC"]
[ECO "C00"]
[WhiteElo "1894"]
[BlackElo "1972"]
[PlyCount "127"]
[EventDate "2024.07.10"]
[EventType "team-tourn"]
[EventCountry "BAN"]
[SourceTitle "playchess.com"]
[Source "ChessBase"]
[SourceQuality "1"]
[TimeControl "5400+30"]

1. e4 {[%emt 0:01:46]} c5 {[%emt 0:00:16]} 2. Nf3 {[%emt 0:00:07]} e6 {[%emt 0:00:55]} 3. d3 {[%emt 0:00:16]} Nc6 {[%emt 0:00:17]} 4. g3 {[%emt 0:00:11]} d5 {[%emt 0:02:22]} 5. Nbd2 {[%emt 0:00:08]} Nf6 {[%emt 0:00:38]} 6. Bg2 {[%emt 0:00:10]} Be7 {[%emt 0:00:44]} 7. O-O {[%emt 0:00:12]} dxe4 {[%emt 0:03:44]} 8. dxe4 {[%emt 0:01:32]} e5 {[%emt 0:00:27]} 9. h3 {[%emt 0:02:20]} O-O {[%emt 0:00:52]} 10. Re1 {[%emt 0:00:23]} h6 {[%emt 0:01:27]} 11. c3 {[%emt 0:00:17]} Be6 {[%emt 0:00:17]} 12. Qc2 {[%emt 0:03:21] C00: Frans: Ongebruikelijke Wit 2e zetten.} Qd7 {[%emt 0:00:24]} 13. g4 {[%emt 0:04:16]} Rad8 {[%emt 0:00:46]} 14. Nf1 {[%emt 0:09:26]} Rfe8 {[%emt 0:02:18]} 15. Ng3 {[%emt 0:02:18]} Nh7 {[%emt 0:00:36]} 16. Nf5 {[%emt 0:01:48]} Bf8 {[%emt 0:04:28]} 17. Be3 {[%emt 0:01:10]} Qc7 {[%emt 0:00:44]} 18. Rad1 {[%emt 0:05:03]} Rxd1 {[%emt 0:01:45]} 19. Rxd1 {[%emt 0:00:09]} Rd8 {[%emt 0:00:18]} 20. b3 {[%emt 0:03:35]} Rxd1+ {[%emt 0:04:28]} 21. Qxd1 {[%emt 0:00:12]} Qd7 {[%emt 0:00:36]} 22. Qd2 {[%emt 0:05:22]} Nf6 {[%emt 0:00:45]} 23. Qxd7 {[%emt 0:01:48]} Nxd7 {[%emt 0:00:28]} 24. Kf1 {[%emt 0:00:42]} Kh7 {[%emt 0:00:26]} 25. Ke2 {[%emt 0:01:58]} g6 {[%emt 0:00:27]} 26. Ng3 {[%emt 0:00:16]} Be7 {[%emt 0:01:26]} 27. Nd2 {[%emt 0:02:16]} Kg7 {[%emt 0:01:37]} 28. Kd3 {[%emt 0:03:05]} b5 {[%emt 0:01:07]} 29. Kc2 {[%emt 0:02:57]} Bg5 {[%emt 0:01:37]} 30. Bxg5 {[%emt 0:05:26]} hxg5 {[%emt 0:00:44]} 31. Ngf1 {[%emt 0:03:05]} Kf8 {[%emt 0:02:09]} 32. Ne3 {[%emt 0:00:18]} Ke7 {[%emt 0:01:01]} 33. Bf1 {[%emt 0:02:12]} a6 {[%emt 0:00:27]} 34. a4 {[%emt 0:00:33]} Na7 {[%emt 0:01:18]} 35. Be2 {[%emt 0:03:03]} Nb6 {[%emt 0:00:58]} 36. axb5 {[%emt 0:00:28]} axb5 {[%emt 0:00:16]} 37. Nf3 {[%emt 0:00:33]} f6 {[%emt 0:00:54]} 38. Nd2 {[%emt 0:01:47]} Kd6 {[%emt 0:00:16]} 39. Nb1 {[%emt 0:00:42]} c4 {[%emt 0:03:54]} 40. b4 {[%emt 0:01:34]} Nac8 {[%emt 0:00:40]} 41. Nd2 {[%emt 0:02:36]} Ne7 {[%emt 0:01:01]} 42. Nf3 {[%emt 0:01:12]} Nc6 {[%emt 0:00:39]} 43. Bf1 {[%emt 0:00:30]} Bf7 {[%emt 0:00:30]} 44. Kd2 {[%emt 0:00:30]} Nd8 {[%emt 0:00:28]} 45. h4 {[%emt 0:01:15]} gxh4 {[%emt 0:00:13]} 46. Nxh4 {[%emt 0:00:14]} Ne6 {[%emt 0:00:20]} 47. f3 {[%emt 0:01:25]} Nf4 {[%emt 1:01:57]} 48. Nhg2 Be6 {[%emt 0:00:00]} 49. Nxf4 {[%emt 0:01:27]} exf4 {[%emt 0:00:00]} 50. Nc2 {[%emt 0:00:38]} Ke5 {[%emt 0:00:00]} 51. Bh3 {[%emt 0:01:13]} Bd7 {[%emt 0:00:00]} 52. Nd4 {[%emt 0:02:16]} Nc8 {[%emt 0:00:00]} 53. Bf1 {[%emt 0:01:25]} Nd6 {[%emt 0:00:00]} 54. Be2 {[%emt 0:01:19]} Nf7 {[%emt 0:00:00]} 55. Ke1 {[%emt 0:01:38]} Kd6 {[%emt 0:00:00]} 56. Kf2 {[%emt 0:00:40]} Kc7 {[%emt 0:00:00]} 57. Bd1 {[%emt 0:00:47]} Kb6 {[%emt 0:00:00]} 58. Ne2 {[%emt 0:00:22]} g5 {[%emt 0:00:00]} 59. Nd4 {[%emt 0:00:16]} Nd6 $11 {[%emt 0:00:00]} 60. Bc2 {[%emt 0:00:40]} Nf7 {[%emt 0:00:00]} 61. Bb1 {[%emt 0:00:35]} Ne5 {[%emt 0:00:00]} 62. Bc2 {[%emt 0:01:13]} Bc8 {[%emt 0:00:00]} 63. Bb1 {[%emt 0:00:51]} Bd7 {[%emt 0:00:00]} 64. Bc2 {[%emt 0:00:09]} 1/2-1/2

[Event "Elegant 1st Division League 2024"]
[Site "Dhaka"]
[Date "2024.07.11"]
[Round "1.14"]
[White "Priyanshu Barua"]
[Black "Hrishin, Talukder"]
[Result "0-1"]
[Annotator "NA RC"]
[ECO "C45"]
[WhiteElo "1987"]
[BlackElo "1982"]
[PlyCount "59"]
[EventDate "2024.07.10"]
[EventType "team-tourn"]
[EventCountry "BAN"]
[SourceTitle "playchess.com"]
[Source "ChessBase"]
[SourceQuality "1"]
[TimeControl "5400+30"]

1. e4 {[%emt 0:03:57]} e5 {[%emt 0:00:27]} 2. Nf3 {[%emt 0:05:00]} Nc6 {[%emt 0:00:04]} 3. d4 {[%emt 0:00:07]} exd4 {[%emt 0:00:23]} 4. Nxd4 {[%emt 0:04:43]} Qf6 {[%emt 0:00:43]} 5. Be3 {[%emt 0:00:03]} Bc5 {[%emt 0:00:15]} 6. c3 {[%emt 0:00:09]} Nge7 {[%emt 0:00:08]} 7. Bc4 {[%emt 0:05:18]} Ne5 {[%emt 0:00:32]} 8. Be2 Qg6 {[%emt 1:31:58]} 9. O-O {[%emt 0:03:39]} d6 {[%emt 0:00:00]} 10. f4 {[%emt 0:08:53]} Qxe4 {[%emt 0:01:00]} 11. Bf2 Bxd4 {[%emt 0:00:00]} 12. cxd4 {[%emt 0:01:05]} N5g6 {[%emt 0:00:00] C45: Scotch Game.} 13. g3 {[%emt 0:01:54]} Bh3 {[%emt 0:00:00]} 14. Bf3 {[%emt 0:00:02]} Qf5 {[%emt 0:00:00]} 15. Re1 {[%emt 0:01:48]} d5 {[%emt 0:00:00]} 16. Nc3 {[%emt 0:06:35]} c6 {[%emt 0:00:00]} 17. Be3 {[%emt 0:15:48]} h5 {[%emt 0:00:00]} 18. Qb3 {[%emt 0:04:15]} O-O-O {[%emt 0:00:00]} 19. Bf2 {[%emt 0:03:35]} h4 {[%emt 0:00:00]} 20. Qa3 {[%emt 0:01:06]} hxg3 {[%emt 0:00:00]} 21. hxg3 {[%emt 0:07:34]} Bg4 {[%emt 0:00:00]} 22. Bg2 {[%emt 0:00:14]} Qh5 {[%emt 0:00:00]} 23. Nd1 {[%emt 0:05:51]} Nf5 $19 {[%emt 0:06:30]} 24. Rc1 {[%emt 0:04:44]} Qh2+ {[%emt 0:00:00]} 25. Kf1 {[%emt 0:00:01]} Rhe8 {[%emt 0:00:00]} 26. Qxa7 {[%emt 0:01:59]} Rxe1+ {[%emt 0:00:00]} 27. Bxe1 {[%emt 0:00:14]} Nxg3+ {[%emt 0:00:00]} 28. Kf2 {[%emt 0:04:23]} Ne4+ {[%emt 0:02:30]} 29. Kf1 {[%emt 0:00:06]} Qxf4+ {[%emt 0:00:00]} 30. Bf2 {[%emt 0:12:27]} 0-1